Cogmind - Beta 13 @@@ ROGUE MODE // 2024.04.23 @ 17:58:09 Player: opaguck Result: Destroyed by S-10 Pest with Light Assault Rifle Performance ------------- Evolutions (0) 0 Regions Visited (2) 400 Robots Destroyed (9) 45 Value Destroyed (231) 231 Prototype IDs (0) 0 Alien Tech Used (0) 0 Bonus (0) 0 TOTAL SCORE: 676 Bonus ------- None Cogmind --------- Core Integrity 0/250 Matter 292/300 Energy 100/100 System Corruption 3% Temperature Cool (0) Movement Walking (120) Location -10/Mines Parts ------- > --- POWER (1) -------- (None) > --- PROPULSION (2) --- Aluminum Leg > --- UTILITY (2) ------ Small Storage Unit Core Shielding > --- WEAPON (2) ------- (None) > --- INVENTORY (8) ---- Heat Sink Datajack Peak State ------------ > --- POWER ------------ Light Ion Engine > --- PROPULSION ------- Aluminum Leg Aluminum Leg > --- UTILITY ---------- Small Storage Unit Tractor Beam > --- WEAPON ----------- EM Pulse Gun Small Laser > --- INVENTORY -------- Light Ion Engine Grenade Launcher [Rating: 7] Favorites ----------- Power Light Ion Engine Engine Light Ion Engine Propulsion Aluminum Leg Leg Aluminum Leg Hover Unit Hover Unit Utility Small Storage Unit Device Tractor Beam Storage Small Storage Unit Protection Core Shielding Weapon Small Laser Energy Gun Small Laser Launcher Grenade Launcher Special Melee Weapon Datajack Build | -11 -10 -10 ------- Run | Yrd Mat Min Slots Evolved . | . . . Power . | . . . Propulsion . | . . . Utility . | . . . Weapon . | . . . Parts Attached 16 | 6 3 7 Power 3 | 1 1 1 Engine 3 | 1 1 1 Core . | . . . Reactor . | . . . Propulsion 5 | 2 . 3 Treads . | . . . Leg 4 | 2 . 2 Wheel . | . . . Hover 1 | . . 1 Flight . | . . . Utility 3 | 1 1 1 Device 1 | . 1 . Storage 1 | 1 . . Processor . | . . . Hackware . | . . . Protection 1 | . . 1 Artifact . | . . . Weapon 5 | 2 1 2 Energy Gun 3 | 2 . 1 Energy Cannon . | . . . Ballistic Gun . | . . . Ballistic Cannon . | . . . Launcher 1 | . 1 . Special Weapon . | . . . Impact Weapon . | . . . Slashing Weapon . | . . . Piercing Weapon . | . . . Special Melee Weapon 1 | . . 1 Unidentified Prototypes . | . . . Parts Lost 8 | . . 8 Power 2 | . . 2 Propulsion 3 | . . 3 Utility . | . . . Weapon 3 | . . 3 Highest Loss Streak 2 | . . 2 To Critical Strikes . | . . . Average Slot Usage (%) 72 | . 95 68 Engine 11 | . 13 10 Leg 16 | . 28 14 Device 10 | . 10 10 Storage 14 | . 14 14 Protection 2 | . . 3 Energy Gun 13 | . 26 10 Launcher 3 | . 1 3 Naked Turns . | . . . Heaviest Build 14 | 11 14 14 Greatest Support 20 | 20 20 20 Greatest Overweight (x) 3 | . . 3 Average Overweight (x) . | . . . Largest Inventory Capacity 8 | 8 8 8 Average Capacity 7 | 6 8 8 Most Carried 4 | 1 3 4 Average Carried 2 | . 2 2 Final Capacity 8 | 8 8 8 Final Carried 3 | 1 3 2 Class Distribution -------------------- 100% | Mutant Dominant Class ---------------- Mutant | -10/Materials Mutant | -10/Mines Resources | -11 -10 -10 ----------- Run | Yrd Mat Min Matter Collected 408 | 181 34 193 Remotely 207 | . 34 173 Salvage Created 140 | . 16 124 Parts 13 | . 5 8 Haulers Intercepted . | . . . Recyclers Shooed . | . . . Parts Field Recycled . | . . . Retrieved Matter . | . . . Parts Self-Destructed . | . . . Prevented . | . . . Kills | -11 -10 -10 ------- Run | Yrd Mat Min Combat Hostiles Destroyed 10 | . 2 8 Guns 3 | . . 3 AOE 7 | . 2 5 Classes Destroyed 4 | . 1 3 Swarmer 5 | . 2 3 Grunt 2 | . . 2 Sentry 2 | . . 2 Assembled 1 | . . 1 Best Kill Streak 3 | . 2 3 Combat Bots Only 3 | . 2 3 Max Kills in Single Turn 3 | . 2 3 Gunslinging . | . . . Exploded 3 | . 2 3 Melee . | . . . Uniques/NPCs Destroyed . | . . . Combat | -11 -10 -10 -------- Run | Yrd Mat Min Hostile Shots Fired 132 | . 35 97 Missed 41 | . 14 27 Damage Taken 1002 | . 190 812 Core 250 | . 36 214 Absorbed by Shields . | . . . Redirected to Shielding 24 | . . 24 Core Remaining (%) 100 | 100 . . Volleys Fired 26 | . 2 24 Largest 2 | . 2 1 Hottest 80 | . 80 40 Shots Fired 27 | . 3 24 Gun 16 | . 2 14 Cannon . | . . . Launcher 11 | . 1 10 Special . | . . . Kinetic . | . . . Thermal 15 | . 1 14 Explosive 11 | . 1 10 Electromagnetic 1 | . 1 . Robot Hit Streak 5 | . . 5 Robot Miss Streak 2 | . . 2 Penetration Max . | . . . Secondary Targets . | . . . Shots Hit Robots 12 | . . 12 Core Hits 22 | . 2 20 Critical Kills . | . . . Critical Parts Destroyed . | . . . Critical Strikes . | . . . Melee Attacks 2 | . . 2 Impact . | . . . Slashing . | . . . Piercing . | . . . Sneak Attacks . | . . . Combat Hostiles . | . . . Follow-up Attacks . | . . . Damage Inflicted 517 | . 74 443 Guns 79 | . . 79 Cannons . | . . . Explosions 422 | . 74 348 Melee . | . . . Ramming 16 | . . 16 Kinetic . | . . . Thermal 79 | . . 79 Explosive 422 | . 74 348 Electromagnetic . | . . . Impact . | . . . Slashing . | . . . Piercing . | . . . Highest Corruption 3 | . . 3 Average Corruption 3 | . . 3 Corruption Purged . | . . . Corruption Blocked . | . . . Effects 2 | . . 2 Matter Fused 1 | . . 1 Heat Flow Errors 1 | . . 1 Overload Shots . | . . . Overflow Damage . | . . . Projectiles . | . . . Explosions . | . . . Melee . | . . . Knockbacks . | . . . Impact . | . . . Kinetic . | . . . Secondary . | . . . Self-Inflicted Damage 66 | . 25 41 Shots 2 | . 1 1 Rammed 2 | . . 2 Targets Rammed 6 | . . 6 Kicked 4 | . . 4 Crushed . | . . . Highest Temperature 207 | . 18 207 Average Temperature 51 | . 12 57 Received Heat Transfer 138 | . . 138 Siege Activations . | . . . Robots Corrupted . | . . . Combat Hostiles . | . . . Parts Fried . | . . . Impact Corruptions . | . . . Robots Melted . | . . . Combat Hostiles . | . . . Parts Melted . | . . . Heat Transferred 175 | . . 175 Parts Sabotaged . | . . . Parts Stolen . | . . . Parts Stripped . | . . . Power Chain Reactions . | . . . Alert | -11 -10 -10 ------- Run | Yrd Mat Min Peak Influence 215 | . 67 215 Initial 25 | . . 25 Average 56 | . 11 69 Maximum Alert Level 1 | . . 1 Low Security (%) 87 | 100 100 84 Level 1 12 | . . 15 Level 2 . | . . . Level 3 . | . . . Level 4 . | . . . Level 5 . | . . . High Security . | . . . Max Security . | . . . Squads Dispatched 1 | . 1 . Investigation 1 | . 1 . Extermination . | . . . Reinforcement . | . . . Assault . | . . . Garrison . | . . . Intercept . | . . . Searches Triggered . | . . . Construction Impeded . | . . . Haulers Reinforced . | . . . Active Scanning Responses . | . . . Cargo Convoy Interrupts . | . . . Stealth | -11 -10 -10 --------- Run | Yrd Mat Min Distress Signals . | . . . Communications Jammed . | . . . Distress Signals . | . . . Times Spotted 18 | . 6 12 Peak Tracking Total 5 | . 5 5 Tactical Retreats 2 | . . 2 Traps | -11 -10 -10 ------- Run | Yrd Mat Min Traps Triggered . | . . . Indirectly . | . . . Trap Hack Attempts . | . . . Triggered . | . . . Disarmed . | . . . Reprogrammed . | . . . Reused . | . . . Traps Extracted . | . . . Installed . | . . . Triggered . | . . . Machines | -11 -10 -10 ---------- Run | Yrd Mat Min Machines Disabled 3 | . . 3 Max in Single Turn 1 | . . 1 Machines Repaired . | . . . Machines Dismantled . | . . . Machines Sabotaged . | . . . Overloaded Fab Kills . | . . . Hacking | -11 -10 -10 --------- Run | Yrd Mat Min Machines Accessed 4 | . 4 . Terminals 2 | . 2 . Fabricators . | . . . Repair Stations . | . . . Recycling Units 2 | . 2 . Scanalyzers . | . . . Garrison Access . | . . . Total Hacks 7 | . 7 . Successful 4 | . 4 . Failed 3 | . 3 . Catastrophic 1 | . 1 . Database Lockouts . | . . . Manual . | . . . Terminals 5 | . 5 . Fabricators . | . . . Repair Stations . | . . . Recycling Units 2 | . 2 . Scanalyzers . | . . . Garrison Access . | . . . Terminal Hacks 2 | . 2 . Emergency Access Points 1 | . 1 . Hauler Manifests 1 | . 1 . Fabricator Hacks . | . . . Repair Station Hacks . | . . . Recycling Unit Hacks 2 | . 2 . Report Inventory 2 | . 2 . Scanalyzer . | . . . Garrison Access Hacks . | . . . Unauthorized Hacks . | . . . Terminals . | . . . Fabricators . | . . . Repair Stations . | . . . Recycling Units . | . . . Scanalyzers . | . . . Garrison Access . | . . . Data Cores Recovered . | . . . Used . | . . . Hacking Detections 1 | . 1 . Full Trace Events 1 | . 1 . Feedback Events . | . . . Feedback Blocked . | . . . Robot Schematics Acquired . | . . . Robots Built . | . . . Authchips . | . . . Time . | . . . Total Robot Build Rating . | . . . Part Schematics Acquired . | . . . Parts Built . | . . . Authchips . | . . . Time . | . . . Total Part Build Rating . | . . . Parts Repaired . | . . . Time . | . . . Parts Recycled . | . . . Recycled Matter . | . . . Retrieved Matter . | . . . Retrieved Components . | . . . Parts Scanalyzed . | . . . Part Schematics Acquired . | . . . Parts Damaged . | . . . Bothacking | -11 -10 -10 ------------ Run | Yrd Mat Min Used RIF Installer . | . . . Robots Hacked 1 | . . 1 Non-combat . | . . . Combat 1 | . . 1 Robot Hacks Applied 1 | . . 1 parse_system 1 | . . 1 Relay Couplers Released . | . . . Fabnet Peak Effective % . | . . . Robots Rewired . | . . . Allies Hacked . | . . . Hacks Repelled . | . . . Allies | -11 -10 -10 -------- Run | Yrd Mat Min Total Allies . | . . . Largest Group . | . . . Highest-Rated Group . | . . . Highest-Rated Ally . | . . . Total Orders . | . . . Ally Attacks . | . . . Total Damage . | . . . Kills . | . . . Allies Corrupted . | . . . Allies Melted . | . . . Intel | -11 -10 -10 ------- Run | Yrd Mat Min Robot Analysis Total . | . . . Derelict Logs Recovered 2 | . . 2 Drone Launches . | . . . Drone Recoveries . | . . . Exploration | -11 -10 -10 ------------- Run | Yrd Mat Min Turns Passed 1116 | 53 178 885 Spaces Moved 720 | 38 135 547 Core 46 | 3 . 43 Treads . | . . . Legs 642 | 35 135 472 Wheels . | . . . Hover 32 | . . 32 Flight . | . . . Fastest Speed 50 | 50 120 100 Average Speed 123 | 114 120 124 Slowest Speed 200 | 120 120 200 Overloaded Moves . | . . . Propulsion Burnouts . | . . . Robots Hopped . | . . . Cave-ins Triggered . | . . . Exploration Rate (%) 42 | 3 37 86 Regions Visited 2 Branch Regions 1 Pre-discovered Areas . | . . . Known Exits Taken . | . . . Unknown Exits Taken 2 | 1 1 . Scrap Searched 2 | . . 2 Spaces Dug . | . . . Terrain Destroyed 71 | . 5 66 Melee . | . . . Projectile . | . . . AOE 71 | . 5 66 Terrain Rammed . | . . . Walls Destroyed . | . . . Machines Disabled . | . . . Actions | -11 -10 -10 --------- Run | Yrd Mat Min Total 915 | 44 147 724 Wait 138 | . 5 133 Move 718 | 37 134 547 Hop . | . . . Pick Up 5 | 1 2 2 Fast Attach 11 | 6 2 3 Attach 4 | . . 4 Detach 1 | . . 1 Swap 1 | . 1 . Drop 3 | . 1 2 Fire 26 | . 2 24 Melee 2 | . . 2 Ram 2 | . . 2 Kick 4 | . . 4 Crush . | . . . Escape Stasis . | . . . Rewire . | . . . Trap . | . . . Miscellaneous . | . . . Route ------- -11/Scrapyard -10/Materials -10/Mines (discovered 1 exit: [*Mat]) History --------- Turn | Location | Event 6 | -11/Scrapyard | Discovered new exit (range 16) 54 | -11/Scrapyard | Entered Materials 197 | -10/Materials | Discovered new exit (range 16) 232 | -10/Materials | Entered Mines 317 | -10/Mines | Build established: Mutant 333 | -10/Mines | Discovered new exit (range 11) 385 | -10/Mines | Joined a pair of Derelicts in attacking an 0b10 outpost 496 | -10/Mines | Learned Materials trap positions 917 | -10/Mines | Excavation squad dispatched 917 | -10/Mines | A large section of the Mines collapsed 1068 | -10/Mines | Core integrity fell below 50% 1109 | -10/Mines | Core integrity fell below 20% 1117 | -10/Mines | Destroyed by S-10 Pest with Light Assault Rifle Last Messages --------------- 00917_ System corrupted by crushing effect (+3). 00920_ Slammed into as-96250. 00921_ System corrupted: Matter fused (-10). 00922_ Slammed into as-96250. 00926_ Jacked as-96250... >>parse_system Reading system data... 00933_ as-96250 destroyed. 00935_ Acquired 20 matter. 01004_ System corrupted: Heat flow error (+227). 01050_ T-07 Excavator is excavating. 01069_ Sml. Laser destroyed. 01071_ T-07 Excavator is excavating. 01076_ as-93455 sneak attacks. 01076_ T-07 Excavator destroyed. 01077_ Lgt. Ion Engine destroyed. 01079_ S-10 Pest destroyed. 01086_ Acquired Aluminum Leg. 01112_ Kicked T-07 Excavator out of the way. 01115_ Kicked T-07 Excavator. Map ----- +----------------------------------------------------+ | | | | | | | | | | | | | | | | | | | | | | | | | | | | | | | | | | | ?????????????????????????????????????????????????? | | ??????????????######?????????????????????????????? | | ?????????????## ##????????????????????????????? | | ???????###### ##???????????????????????????? | | ###### ##??????????????????????????? | | #??????????????????????????? | | ## ##?????????????????????????? | | ??? #??# #########???#######???????? | | ????? ####t s @ tt #?### ##??????? | | ??????????# ## s ######## ### ##### #? | | ???????#### ##?????# ## #? | | ???????# # ## ##????# ## #? | | ??????## ## ######### #????# ## ###? | | ?#### ##?## #???????# #????# ## #??? | | ?# #? ## #???????####????# ## ### #??? | | ?# ##### ?# #???????????????# #?## #??? | | ?# #?# ??# #???????????????##### #??#### ##??? | | ?# #?# #??#* #???????????????????# #??????###???? | | ?# ### #??# #???????????????????# #????????????? | | ## ## ##?#!=#???????????????????# #????????????? | | ### #???????????????????# #????????????# | | " #???????????????????# #??????????### | | ### #######??????????????###### #?????????## | | ??## #????????????????????# ####????### | | ??## ##????????????????????# ####### ###?## | | ###*" #?????????????????????# #????# ### | | #=*% ##????????????????????# #????# | | #=%= ###??????????????????### #????## ## | | # #### #????????????????## ##????## #### | | # ### ??????????????# ##???## #??# | | # #???# #????????????# ##??# #??? | | #????? #???????????## #### ##??? | | #?????? #?????????### ## ##???# | +----------------------------------------------------+ Best States ------------- Heat Dissipation 25 Energy Generation 10 Energy Capacity 125 Matter Stores 295 Matter Capacity 300 Sight Range 16 Terrain Scan Density 10 Core Shielding 20 Evasion (%) 55 Item Schematics ----------------- None Robot Schematics ------------------ None Fabricated ------------ Nothing Alien Tech Used ----------------- None Achievements -------------- None Challenges ------------ None Game ------ Seed PulseMicroTrap Manual? 0 Play Time 00:13:00 Cumulative 15.0 hours Start 2024.04.23 @ 17:48:01 End 2024.04.23 @ 17:58:09 Sessions 1 Manual Loads 0 Difficulty Rogue Special Mode None Game No. 18 Rogue 18 Adventurer 0 Explorer 0 Win Type - Total 0 Types 0/0/0/0/0/0/0/0/0 Lore% 20 Gallery% 20 Achievement% 18 Wizard Run 0 Options --------- Layout 1 ASCII 0 Keyboard 0 Movement Mouse Keybinds 0 Fullscreen 2 Font 24/Smallcaps Map View 50x35 Zoom Use 0% Tactical HUD 1 Map Filters NONE Filters NONE Steam 1 RUN: bb6f5142-d143-4092-8d49-5747c0281c70